bitfinex/quotes_ETHUSD_20251110
["timestamp","ask_amount","ask_price","bid_price","bid_amount"]
[1762799676468,2.184012,3552.2,3552.1,0.002]
[1762799676626,4.9991688,3552.2,3552.1,0.002]
[1762799677059,8.5199138,3552.2,3552.1,0.002]
[1762799677257,9.52459311,3552.2,3552.1,0.002]
[1762799677462,9.52459311,3552.2,3551.9,0.002]
[1762799677463,4.48053131,3552.0,3551.9,0.002]
[1762799677660,4.48084839,3551.6,3551.5,0.002]
[1762799677870,3.22145353,3551.2,3551.1,0.012]
[1762799678177,5.23254822,3551.2,3551.1,0.012]
[1762799678465,7.20387462,3551.2,3551.1,0.012]
[1762799678670,6.81398228,3551.2,3551.1,0.012]
[1762799678869,6.48539193,3551.2,3551.1,0.012]
[1762799679024,3.2639384,3551.2,3551.1,0.012]
[1762799679225,4.56576153,3551.2,3551.1,0.012]
[1762799680323,1.292612,3551.2,3551.1,0.012]
[1762799680557,2.50520866,3551.2,3551.1,0.012]
[1762799680869,12.55157557,3551.2,3551.1,0.012]
[1762799681027,12.12476926,3551.2,3551.1,0.012]
[1762799681227,13.5230127,3551.2,3551.1,0.012]
[1762799681422,13.9285167,3551.2,3551.1,0.012]
[1762799681639,2.81626675,3550.8,3550.7,0.002]
[1762799681957,7.23746579,3550.8,3550.7,0.002]
[1762799682176,8.44883888,3550.8,3550.7,0.002]
[1762799682348,8.12024853,3550.8,3550.7,0.002]
[1762799682934,5.35151588,3550.8,3550.7,0.002]
[1762799683559,4.59734279,3550.8,3550.7,0.002]
[1762799683768,7.01673188,3550.8,3550.7,0.002]
[1762799683973,6.59114914,3550.8,3550.7,0.002]
[1762799684161,7.34425378,3550.8,3550.7,0.002]
[1762799685187,6.59114914,3550.8,3550.7,0.002]
[1762799685691,7.59744818,3550.8,3550.7,0.002]
[1762799686046,6.59114914,3550.8,3550.7,0.002]
[1762799686279,7.5937215,3550.8,3550.7,0.002]
[1762799686847,6.98104148,3550.8,3550.7,0.002]
[1762799687206,6.59114914,3550.8,3550.7,0.002]
[1762799687396,6.26255879,3550.8,3550.7,0.002]
[1762799688265,7.01387301,3550.8,3550.7,0.002]
[1762799688459,6.26255879,3550.8,3550.7,0.002]
[1762799689489,7.01354844,3550.8,3550.7,0.002]
[1762799690304,6.1670724,3550.8,3550.7,0.002]
[1762799690481,5.41608275,3550.8,3550.7,0.002]
[1762799694208,1.737112,3550.8,3550.7,0.002]
[1762799694373,4.55337875,3550.8,3550.7,0.002]
[1762799695465,5.02617875,3550.8,3550.7,0.002]
[1762799696284,1.259712,3550.8,3550.7,0.4742]
[1762799697115,1.259712,3550.8,3550.7,0.002]
[1762799697985,1.259712,3550.8,3550.7,0.4742]
[1762799698616,1.259712,3550.8,3550.7,0.002]
[1762799699933,1.259712,3550.8,3550.7,0.4742]
[1762799700734,1.259712,3550.8,3550.7,0.9609]
[1762799701794,1.259712,3550.8,3550.7,0.4742]
[1762799702191,4.53617875,3550.8,3550.7,0.002]
[1762799702417,6.52333395,3550.8,3550.7,0.002]
[1762799702616,7.16434785,3550.8,3550.7,0.002]
[1762799702930,7.16434785,3550.8,3550.3,0.002]
[1762799702931,3.22199873,3550.6,3550.3,0.002]
[1762799703131,3.22199873,3550.6,3550.1,1e-08]
[1762799703132,2.82604271,3550.2,3550.1,1e-08]
[1762799703334,5.38806373,3550.1,3550.0,996.35005931]
[1762799703539,7.69906336,3550.1,3550.0,996.35005931]
[1762799703892,7.69906336,3550.1,3550.0,996.34605931]
[1762799704319,9.03828438,3550.1,3550.0,996.34605931]
[1762799704959,2.26352,3550.1,3550.0,996.34605931]
[1762799705117,1.259712,3550.1,3550.0,996.34605931]
[1762799705645,2.01321674,3550.1,3550.0,996.34605931]
[1762799705853,0.75350474,3550.2,3550.1,2.81682206]
[1762799706057,0.75350474,3550.7,3550.6,0.4722]
[1762799706260,2.81710102,3551.1,3550.7,2.81634607]
[1762799706261,0.75350474,3550.8,3550.7,2.81634607]
[1762799706558,1.004808,3551.1,3551.0,0.4722]
[1762799706559,0.001,3551.1,3551.0,0.4722]
[1762799706933,0.001,3551.1,3551.0,3.77500813]
[1762799707962,0.001,3551.1,3551.0,4.43413274]
[1762799713047,0.001,3551.5,3551.4,2.81579095]
[1762799713247,0.001,3551.5,3551.4,3.28799095]
[1762799713589,0.001,3551.5,3551.4,3.77469095]
[1762799717052,0.001,3551.5,3551.4,3.80284885]
[1762799717253,0.001,3551.5,3551.4,4.48418186]
[1762799717477,0.001,3551.5,3551.4,4.45602396]
[1762799718489,0.001,3551.5,3551.4,4.48418186]
[1762799718696,0.001,3551.5,3551.4,4.45602396]
[1762799718896,0.001,3551.5,3551.4,3.77469095]
[1762799720690,0.001,3551.5,3551.4,3.28799095]
[1762799720877,0.001,3551.5,3551.4,2.81579095]
[1762799721063,0.001,3551.5,3551.4,3.28799095]
[1762799722465,0.001,3551.5,3551.4,3.77469095]
[1762799722716,0.001,3551.5,3551.4,4.43374789]
[1762799727928,0.001,3551.5,3551.4,3.94704789]
[1762799728129,0.001,3551.5,3551.4,3.28799095]
[1762799728274,0.001,3551.5,3551.4,0.4722]
[1762799728474,0.001,3551.5,3551.4,3.28799095]
[1762799730315,0.4262,3551.5,3551.3,2.81581773]
[1762799730617,0.001,3551.5,3551.4,2.81579095]
[1762799730853,0.001,3551.5,3551.4,3.31329095]
[1762799731038,0.001,3551.5,3551.4,3.78479095]
[1762799731441,0.001,3551.5,3551.4,3.31329095]
[1762799731813,0.001,3551.5,3551.4,0.4975]
[1762799732019,0.001,3551.5,3551.4,3.31329095]
[1762799732421,0.001,3551.5,3551.4,2.81579095]
[1762799732645,0.001,3551.5,3551.4,3.31329095]
[1762799733618,0.4262,3551.5,3551.3,2.8157979]
[1762799734028,0.0043,3551.4,3551.1,2.8160173]
[1762799734224,0.0043,3551.4,3551.3,2.81587024]
[1762799734656,0.001,3551.5,3551.4,2.81579095]
[1762799734856,0.001,3551.5,3551.4,3.78479095]
[1762799735233,0.001,3551.5,3551.4,3.31329095]
[1762799735640,0.232,3551.5,3551.3,2.81581877]
[1762799735944,0.1965,3551.4,3551.3,2.81581877]
[1762799736179,0.1965,3551.4,3551.1,0.002]
[1762799736383,0.6796,3551.4,3551.1,0.002]
[1762799736581,0.2307,3551.2,3551.1,0.002]
[1762799736781,0.2307,3551.2,3551.1,2.81802883]
[1762799739296,0.4831,3551.4,3551.3,2.81587024]
[1762799739697,0.9083,3551.4,3551.3,2.81587024]
[1762799740005,0.4252,3551.4,3551.2,2.81590341]
[1762799740365,0.001,3551.5,3551.3,2.81587024]
[1762799740560,0.001,3551.5,3551.4,2.81579095]
[1762799740804,0.001,3551.5,3551.1,0.002]
[1762799741165,0.4252,3551.2,3551.1,2.81802883]
[1762799741359,0.4252,3551.2,3551.1,0.002]
[1762799741669,0.4252,3551.2,3551.1,2.81802883]
[1762799742897,0.4841,3551.5,3551.2,2.81589703]
[1762799743110,0.4841,3551.5,3551.2,2.81594953]
[1762799743310,0.4841,3551.5,3551.1,0.002]
[1762799743603,0.4252,3551.3,3551.1,0.002]
[1762799743765,0.4841,3551.5,3551.1,0.002]
[1762799743766,0.4841,3551.5,3551.1,2.81802276]
[1762799743962,0.4252,3551.2,3551.1,2.81802883]
[1762799746325,0.9077,3551.2,3551.1,0.002]
[1762799746617,4.48107702,3551.2,3551.1,0.002]
[1762799746779,3.72364953,3551.2,3551.1,0.002]
[1762799747400,1.66465936,3551.2,3551.1,0.002]
[1762799747667,4.48060527,3551.2,3551.1,0.002]
[1762799750572,5.38886553,3551.2,3551.1,0.002]
[1762799750766,5.8100912,3551.2,3551.1,0.002]
[1762799751815,6.13701488,3551.2,3551.1,0.002]
[1762799752597,6.13701488,3551.2,3551.1,0.001]
[1762799753924,3.22177075,3550.8,3550.7,0.002]
[1762799754223,11.52202805,3550.8,3550.7,0.002]
[1762799754425,9.97139827,3550.8,3550.7,0.002]
[1762799754596,11.98362805,3550.8,3550.7,0.002]
[1762799754801,9.97139827,3550.8,3550.7,0.002]
[1762799759437,9.64447459,3550.8,3550.7,0.002]
[1762799760319,11.14802329,3550.8,3550.7,0.002]
[1762799761016,6.45143145,3550.8,3550.7,0.002]
[1762799761221,5.95007895,3550.8,3550.7,0.002]
[1762799761813,5.36910842,3550.8,3550.7,0.002]
[1762799762020,5.95006926,3550.8,3550.7,0.002]
[1762799762638,4.94788275,3550.8,3550.7,0.002]
[1762799764038,5.69968459,3550.8,3550.7,0.002]
[1762799764444,6.12091026,3550.8,3550.7,0.002]
[1762799764756,3.57286859,3550.8,3550.7,0.002]
[1762799764952,4.08077875,3550.8,3550.7,0.002]
[1762799767362,1.259712,3550.8,3550.7,0.4635]
[1762799767553,4.52117875,3550.8,3550.7,0.002]
[1762799768223,1.259712,3550.8,3550.7,0.002]
[1762799768420,1.259712,3550.8,3550.7,0.4635]
[1762799768832,0.75280184,3551.2,3550.7,0.9431]
[1762799769073,4.07672258,3551.2,3551.1,0.4615]
[1762799772892,0.001,3551.2,3551.1,0.6454]
[1762799773076,0.4462,3551.2,3550.7,0.002]
[1762799773263,2.81615884,3551.0,3550.7,0.002]
[1762799773445,3.2621937,3551.2,3550.8,0.4796]
[1762799773651,0.001,3551.2,3551.1,0.4615]
[1762799774265,4.07666153,3551.2,3551.1,0.4615]
[1762799774983,1.260712,3551.2,3551.1,0.9411]
[1762799775985,0.001,3551.2,3551.1,0.9411]
[1762799776850,0.001,3551.2,3551.1,1.31682676]
[1762799777511,0.001,3551.2,3551.1,0.9411]
[1762799777718,2.81608528,3551.1,3550.7,0.002]
[1762799777887,2.81608528,3551.1,3550.7,0.4816]
[1762799779387,2.81698086,3551.2,3550.7,0.4816]
[1762799779811,0.001,3551.2,3550.7,0.4816]
[1762799780309,2.81626675,3550.8,3550.7,0.002]
[1762799780511,0.4505,3550.8,3550.7,0.002]
[1762799780883,2.81611881,3551.0,3550.7,0.4635]
[1762799781083,2.81619219,3550.9,3550.7,0.4635]
[1762799781516,0.75280184,3551.2,3550.8,0.9411]
[1762799781815,1.260712,3551.2,3551.1,0.4615]
[1762799782533,29.852687,3551.2,3551.1,0.4615]
[1762799782903,1.260712,3551.2,3551.1,0.9411]
[1762799784023,0.001,3551.2,3551.1,0.9411]
[1762799784192,2.81694953,3551.2,3551.1,0.4615]
[1762799784902,2.81626675,3550.8,3550.7,0.002]
[1762799785123,3.30236675,3550.8,3550.7,0.002]
[1762799785294,33.99365775,3550.8,3550.7,0.002]
[1762799785487,34.7418071,3550.8,3550.7,0.002]
[1762799785696,35.14745792,3550.8,3550.7,0.002]
[1762799786294,6.55548292,3550.8,3550.7,0.002]
[1762799786600,8.5677127,3550.8,3550.7,0.002]
[1762799786813,47.1596877,3550.8,3550.7,0.002]
[1762799787019,34.7418071,3550.8,3550.7,0.002]
[1762799792038,33.99365775,3550.8,3550.7,0.002]
[1762799793946,35.50354594,3550.8,3550.7,0.002]
[1762799795759,34.58334594,3550.8,3550.7,0.4907]
[1762799796052,32.41491453,3550.8,3550.7,0.4907]
[1762799796280,11.67897875,3550.8,3550.7,0.9635]
[1762799796454,1.00667278,3550.9,3550.7,0.9635]
[1762799796613,3.57119249,3550.9,3550.7,0.4748]
[1762799796817,4.83090449,3550.9,3550.8,0.4887]
[1762799797019,31.89434175,3550.8,3550.7,0.002]
[1762799797221,33.90902862,3550.8,3550.7,0.002]
[1762799797553,33.15405375,3550.8,3550.7,0.002]
[1762799798435,33.9084231,3550.8,3550.7,0.002]
[1762799798641,19.4223481,3550.8,3550.7,0.9635]
[1762799798857,11.79997875,3550.8,3550.7,0.9635]
[1762799799255,10.68997875,3550.8,3550.7,0.9635]
[1762799799421,10.71697875,3550.8,3550.7,0.9635]
[1762799799622,10.71997875,3550.8,3550.7,0.9635]
[1762799799855,10.76597875,3550.8,3550.7,0.9635]
[1762799800055,10.77097875,3550.8,3550.7,0.9635]
[1762799800358,10.77597875,3550.8,3550.7,0.9635]
[1762799800527,10.80097875,3550.8,3550.7,0.9635]
[1762799800732,10.80197875,3550.8,3550.7,0.4907]
[1762799801758,32.66795375,3550.8,3550.7,0.4907]
[1762799802923,33.8704231,3550.8,3550.7,0.002]
[1762799803677,5.2784481,3550.8,3550.7,0.002]
[1762799803961,5.7501481,3550.8,3550.7,0.002]
[1762799804125,44.3421231,3550.8,3550.7,0.002]
[1762799804329,34.3421231,3550.8,3550.7,0.002]
[1762799804564,34.59442653,3550.8,3550.7,0.002]
[1762799805059,34.12272653,3550.8,3550.7,0.002]
[1762799805965,34.59442653,3550.8,3550.7,0.002]
[1762799806165,33.58775375,3550.8,3550.7,0.002]
[1762799807372,33.11605375,3550.8,3550.7,0.002]
[1762799809347,1.00695358,3550.9,3550.7,0.9635]
[1762799809593,0.75528607,3550.9,3550.7,0.85300076]
[1762799809760,0.75528607,3550.9,3550.8,0.4728]
[1762799809968,2.01499807,3550.9,3550.8,0.9615]
[1762799810800,0.75528607,3550.9,3550.8,0.9615]
[1762799811004,2.81618744,3550.9,3550.8,0.9615]
[1762799811987,0.75528607,3551.0,3550.8,0.4887]
[1762799812198,0.75528607,3551.0,3550.9,0.4887]
[1762799812384,4.8311062,3551.0,3550.9,0.4887]
[1762799812777,2.01499807,3551.0,3550.9,0.4887]
[1762799812976,2.01499807,3551.0,3550.9,0.9615]
[1762799813185,0.75628607,3551.1,3550.9,0.9615]
[1762799813410,0.011,3551.9,3551.8,4.07518584]
[1762799813689,2.01322978,3552.5,3552.2,0.5284]
[1762799813690,0.001,3552.5,3552.2,0.5284]
[1762799813993,0.011,3552.9,3552.8,2.81468137]
[1762799814189,0.01,3553.9,3552.8,8.65358945]
[1762799814375,0.01,3553.9,3553.8,0.5482]
[1762799814580,0.01,3553.9,3553.8,1.013]
[1762799814779,0.01,3553.9,3553.8,7.44013862]
[1762799815104,0.01,3553.9,3553.8,3.82688935]
[1762799815290,0.01,3553.9,3553.8,5.08660135]
[1762799815498,0.01,3553.9,3553.8,4.61695301]
[1762799816704,0.01,3554.9,3554.4,2.81340408]
[1762799816883,0.01,3554.9,3554.8,0.6556]
[1762799817081,0.01,3554.9,3554.8,1.1306]
[1762799817393,0.01,3554.9,3554.8,0.6556]
[1762799817588,22.655,3554.9,3554.8,0.6556]
[1762799817789,11.763,3554.9,3554.6,0.1909]
[1762799817998,0.01,3554.9,3554.6,0.1909]
[1762799818296,0.01,3554.9,3554.3,2.81347978]
[1762799818297,0.01,3554.9,3554.0,3.28870601]
[1762799818454,0.01,3554.9,3554.0,0.89039697]
[1762799818657,0.2024,3554.9,3554.0,0.475]
[1762799818903,2.81311123,3554.8,3554.0,0.475]
[1762799819425,2.81311123,3554.8,3554.0,3.28872799]
[1762799819916,0.01,3554.9,3554.3,2.81344008]
[1762799820129,0.01,3554.9,3554.8,0.4647]
[1762799821786,0.01,3554.9,3554.8,0.9397]
[1762799822587,0.01,3554.9,3554.8,0.4647]
[1762799822784,0.01,3554.9,3554.8,3.75279778]
[1762799823098,0.01,3554.9,3554.8,4.40940249]
[1762799823316,0.4642,3554.9,3553.8,0.0752]
[1762799823530,2.81339301,3554.5,3553.8,0.0752]
[1762799823843,3.56544339,3554.4,3553.8,0.0752]
[1762799823991,2.81349557,3554.3,3553.8,0.0752]
[1762799824190,2.81357387,3554.2,3553.8,0.0752]
[1762799824733,0.75199182,3554.4,3553.8,0.0752]
[1762799824734,2.81351625,3554.3,3553.8,0.0752]
[1762799825386,3.56541438,3554.4,3553.8,0.0752]
[1762799826819,0.4542,3553.9,3553.3,0.0758]
[1762799827341,0.75199182,3553.8,3553.3,0.0758]
[1762799828446,0.75199182,3553.8,3553.3,3.3650567]
[1762799828833,0.75199182,3553.8,3553.7,0.4647]
[1762799829926,0.75199182,3553.8,3553.3,0.0758]
[1762799829927,28.591975,3553.7,3553.3,0.0758]
[1762799830253,3.56605172,3553.6,3553.3,0.0758]
[1762799830547,0.75199182,3553.6,3553.3,0.0758]
[1762799830749,2.81398357,3553.7,3553.5,0.4647]
[1762799831851,2.81388935,3553.8,3553.5,0.4647]
[1762799832155,2.81413454,3553.5,3553.3,0.0758]
[1762799832677,28.591975,3553.3,3552.8,0.1909]
[1762799832958,1.20619182,3553.4,3552.3,2.81502793]
[1762799832959,29.34396682,3553.2,3552.3,2.81502793]
[1762799833156,28.591975,3553.1,3552.3,0.33397279]
[1762799833356,0.75199182,3553.0,3552.3,0.475]
[1762799833520,2.81478479,3552.7,3552.2,0.0397]
[1762799833723,2.81484766,3552.6,3552.2,0.0397]
[1762799834479,2.81459366,3553.0,3552.5,0.4647]
[1762799834777,2.81444372,3553.1,3553.0,0.4647]
[1762799834959,2.81465497,3552.9,3552.3,0.475]
[1762799835351,2.81455338,3553.0,3552.3,0.475]
[1762799835559,1.259712,3553.4,3552.3,3.29005484]
[1762799835758,2.81464195,3552.9,3552.3,3.29005484]
[1762799836077,2.81464195,3552.9,3552.3,0.475]
[1762799836279,2.81464195,3552.9,3552.3,3.29007112]
[1762799836459,2.81464195,3552.9,3552.3,0.475]
[1762799836659,2.81460008,3553.0,3552.3,3.29002588]
[1762799837059,2.81460978,3552.9,3552.3,3.29002588]
[1762799837273,4.07407651,3553.2,3552.2,0.0397]
[1762799837587,29.050475,3553.1,3552.2,0.5147]
[1762799837765,28.591975,3553.0,3552.2,0.5147]
[1762799837967,31.40656286,3553.0,3552.2,3.32983477]
[1762799838172,2.81460966,3552.9,3552.2,3.32983477]
[1762799838373,2.81438652,3553.2,3552.2,3.32983477]
[1762799838374,2.81438652,3553.2,3552.2,0.65520846]
[1762799838683,2.81441871,3553.2,3552.8,0.4647]
[1762799838999,1.259712,3553.3,3552.8,0.4647]
[1762799839207,0.4585,3553.8,3552.2,0.0397]
[1762799839208,10.0,3553.8,3553.2,0.4647]
[1762799839513,1.259712,3553.9,3553.3,2.81427611]
[1762799839786,7.411,3553.8,3553.1,0.1334]
[1762799839989,3.0060596,3554.1,3553.2,0.29479075]
[1762799840160,2.81392836,3553.8,3553.1,3.42284112]
[1762799840345,2.81392836,3553.8,3553.2,2.81435738]
[1762799841446,2.81384112,3553.9,3553.3,2.81428226]
[1762799841655,11.259712,3554.4,3553.4,2.81417167]
[1762799841863,2.81369848,3554.1,3553.2,3.28935845]
[1762799842072,2.81369848,3554.1,3553.3,0.34227584]
[1762799842380,11.259712,3554.2,3553.3,0.34227584]
[1762799842381,2.81358356,3554.2,3553.6,2.81404752]
[1762799842555,0.4595,3554.4,3553.3,0.81727584]
[1762799842764,1.259712,3554.2,3553.4,2.814149]
[1762799842973,1.259712,3554.1,3553.4,2.814149]
[1762799843170,2.81359172,3554.2,3553.4,2.81420442]
[1762799843388,2.81385437,3553.9,3553.2,2.81430134]
[1762799843693,10.0,3554.0,3553.2,2.81431191]
[1762799843980,2.8139892,3553.7,3553.1,0.1334]
[1762799844373,2.8139892,3553.7,3553.1,2.9478425]
[1762799844572,2.8139892,3553.7,3553.1,0.1334]
[1762799845097,2.8139162,3553.8,3553.2,2.8143524]
[1762799845393,31.4058912,3553.8,3553.2,2.8143524]
[1762799845558,0.1924,3553.9,3553.1,0.1334]
[1762799845763,3.26622709,3553.7,3553.0,2.81450309]
[1762799845964,3.26622709,3553.7,3552.5,0.4779]
[1762799845965,2.81425578,3553.4,3552.5,0.4779]
[1762799846186,2.81415162,3553.5,3552.5,0.4779]
[1762799846354,2.81415162,3553.5,3552.9,2.81453694]
[1762799846554,2.81415162,3553.5,3552.8,2.81466267]
[1762799846972,2.81405435,3553.6,3552.5,0.4779]
[1762799847203,28.591975,3553.5,3553.0,2.81447734]
[1762799847498,4.376,3553.5,3553.0,2.81447217]
[1762799847654,2.81402807,3553.7,3553.1,0.0563]
[1762799847852,31.37908647,3553.6,3553.1,0.0563]
[1762799848093,0.1913,3554.2,3553.1,0.39117819]
[1762799848247,2.81387442,3553.9,3553.2,2.81436451]
[1762799848446,4.07358642,3553.9,3553.3,2.81427983]
[1762799848671,1.259712,3553.8,3553.3,2.81427983]
[1762799849107,4.5258287,3553.8,3553.1,0.0563]
[1762799849299,29.044175,3553.7,3552.3,2.81502595]
[1762799849518,28.591975,3553.6,3553.1,2.81437685]
[1762799850085,0.4522,3553.6,3553.2,2.81436405]
[1762799850318,0.4522,3553.5,3553.0,2.81450021]
[1762799850773,0.4522,3553.5,3553.1,2.81439513]
[1762799851484,11.259712,3553.8,3553.1,2.81439513]
[1762799851485,11.259712,3553.8,3553.2,2.81436405]
[1762799851710,4.07360549,3553.8,3553.1,0.46233951]
[1762799851875,4.07360549,3553.8,3553.2,2.81436148]
[1762799852074,1.259712,3553.8,3553.1,0.1809]
[1762799852281,1.259712,3553.8,3553.4,2.8141624]
[1762799853609,1.259712,3553.8,3553.1,3.47322017]
[1762799853831,1.259712,3553.8,3552.6,3.85999999]
[1762799853832,0.4821,3553.5,3553.0,2.81447801]
[1762799854028,0.4821,3553.5,3553.2,2.81435424]
[1762799854325,0.4821,3553.5,3553.3,2.81427794]
[1762799854731,0.4821,3553.5,3553.1,0.56291594]
[1762799854882,0.4821,3553.5,3553.1,3.37735763]
[1762799855078,0.4821,3553.5,3553.2,2.8143155]
[1762799855327,1.711912,3553.8,3553.3,2.8142363]
[1762799855523,1.711912,3553.8,3553.4,2.81420115]
[1762799855712,1.711912,3553.8,3553.7,0.458]
[1762799855713,1.259712,3553.8,3553.7,0.458]
[1762799856296,1.259712,3553.8,3553.4,2.81412988]
[1762799856988,2.8137336,3554.0,3553.3,3.29218223]
[1762799857188,0.4522,3553.9,3553.0,3.85999999]
[1762799857395,0.4522,3553.9,3553.2,2.81429339]
[1762799857595,28.591975,3553.8,3553.1,2.81443411]
[1762799857908,2.81402278,3553.7,3553.1,2.81443411]
[1762799858320,0.4821,3553.2,3553.0,3.85999999]
[1762799858531,10.0,3553.5,3553.0,3.85999999]
[1762799858712,0.4522,3553.4,3553.0,3.85999999]
[1762799859029,0.4821,3553.1,3553.0,3.85999999]
[1762799859437,10.4821,3553.1,3553.0,3.85999999]
[1762799859726,20.3691,3553.1,3553.0,3.85999999]
[1762799859885,20.2841,3553.1,3553.0,3.85999999]
[1762799860085,20.2841,3553.1,3552.4,0.4779]
[1762799860415,0.4821,3553.1,3552.8,2.81465619]
[1762799860981,0.9343,3553.1,3552.6,2.81478695]
[1762799861281,0.29,3552.9,3552.6,2.81478695]
[1762799861684,0.29,3552.9,3552.6,2.81478705]
[1762799861893,0.29,3552.9,3552.7,2.81475901]
[1762799862098,10.0,3553.4,3552.4,0.72048007]
[1762799862299,2.26689331,3553.6,3553.0,0.458]
[1762799862516,2.81420637,3553.4,3553.0,0.458]
[1762799862909,3.26640637,3553.4,3552.8,2.81467945]
[1762799863488,0.4821,3552.9,3552.7,2.81470466]
[1762799863813,3.2665027,3553.3,3552.7,2.81470466]
[1762799864076,28.591975,3553.2,3552.7,2.81470466]
[1762799864226,28.591975,3553.2,3552.8,2.8146748]
[1762799864680,29.044175,3553.2,3552.4,3.85999999]
[1762799864892,0.4821,3552.9,3552.4,3.85999999]
[1762799865032,0.4821,3552.9,3552.6,2.81483048]
[1762799865237,2.81438785,3553.2,3552.4,6.67497781]
[1762799865582,0.4821,3552.5,3552.2,3.89969999]
[1762799865884,0.4821,3552.5,3552.2,2.85482884]
[1762799866086,0.4821,3552.5,3552.2,2.81512884]
[1762799866579,0.4821,3552.5,3552.4,2.81499831]
[1762799866743,0.6435,3552.8,3552.4,2.81499831]
[1762799867082,0.6435,3552.8,3552.1,3.92049999]
[1762799867083,0.6435,3552.8,3552.3,2.81506116]
[1762799871093,9.356,3553.2,3552.2,6.67509861]
[1762799871254,2.81446205,3553.1,3552.5,2.81490254]
[1762799871450,2.81446946,3553.1,3552.3,0.4779]
[1762799872069,2.81446946,3553.1,3552.5,2.81491295]
[1762799872457,2.8143975,3553.2,3552.6,2.8148357]
[1762799872783,2.8144492,3553.1,3552.6,2.8148357]
[1762799873184,3.2666492,3553.1,3552.6,2.8148357]
[1762799873498,4.02389683,3553.1,3552.5,2.81488977]
[1762799873958,0.4522,3553.1,3552.6,2.81477155]
[1762799874382,2.814526,3553.0,3552.4,2.81499831]
[1762799874557,2.814526,3553.0,3552.5,2.81491813]
[1762799874762,2.814526,3553.0,3552.4,2.81497874]
[1762799875687,2.814526,3553.0,3552.4,3.81783173]
[1762799875888,1.20944763,3553.1,3552.4,1.00285299]
[1762799876108,0.75724763,3553.0,3552.3,3.2949601]
[1762799876458,3.57175875,3553.1,3552.4,2.81498513]
[1762799876767,0.75724763,3553.1,3552.6,2.81477919]
[1762799876989,2.01695963,3553.2,3552.6,2.81477919]
[1762799877171,2.01695963,3553.2,3552.7,2.81475306]
[1762799878896,0.75724763,3553.2,3552.5,0.4609]
[1762799879195,0.75724763,3553.2,3552.7,2.81473952]
[1762799879353,0.75724763,3553.2,3552.6,2.8147816]
[1762799879558,1.24424763,3553.2,3552.7,2.81475738]
[1762799879806,0.75724763,3553.2,3552.8,2.81467801]
[1762799880157,0.75724763,3553.2,3552.7,2.8147267]
[1762799880494,0.75724763,3553.2,3552.7,3.49515942]
[1762799880695,0.75724763,3553.2,3552.7,3.95605942]
[1762799880896,0.75724763,3553.2,3552.8,2.81468127]
[1762799881258,0.75724763,3553.2,3552.7,3.95605702]
[1762799881460,0.75724763,3553.2,3552.8,2.8146581]
[1762799882196,2.01695963,3553.2,3552.7,1.14133272]
[1762799882500,0.75724763,3553.1,3552.7,3.49519256]
[1762799883775,0.75724763,3553.1,3552.8,2.81464507]
[1762799883985,2.01695963,3553.2,3553.0,0.4661]
[1762799884307,0.75724763,3553.2,3553.1,0.647]
[1762799884467,0.75724763,3553.6,3553.3,2.81423645]
[1762799884663,0.001,3553.7,3553.6,0.4661]
[1762799884664,0.75824763,3553.7,3553.6,0.4661]
[1762799884869,0.75824763,3553.7,3553.1,0.6418]
[1762799885066,0.75824763,3553.7,3553.1,3.90641998]
[1762799885312,3.57222564,3553.7,3553.1,2.81443998]
[1762799885521,28.591975,3553.6,3552.8,3.85999999]
[1762799885719,28.591975,3553.6,3552.1,0.0605]
[1762799885720,0.661,3552.9,3552.3,2.81707561]
[1762799885925,3.13041368,3552.8,3552.3,0.002]
[1762799886069,0.474,3552.4,3552.3,0.002]
[1762799886723,3.3017838,3552.7,3552.3,0.002]
[1762799887519,0.487,3552.6,3552.3,0.002]
[1762799891912,0.75724763,3552.9,3552.5,3.2809958]
[1762799892114,0.75724763,3553.0,3552.6,2.81483786]
[1762799892409,0.4773,3552.6,3552.3,0.002]
[1762799892775,0.4773,3552.6,3552.4,2.81499307]
[1762799893208,0.4773,3552.6,3552.5,2.81491907]
[1762799893713,1.42964763,3552.9,3552.5,2.81491907]
[1762799894117,1.42964763,3552.9,3552.6,2.81483067]
[1762799894413,1.42964763,3552.9,3552.3,0.002]
[1762799894590,1.42964763,3552.9,3552.5,2.81487512]
[1762799895296,1.42964763,3552.9,3552.4,2.81495402]
[1762799895495,0.75724763,3552.8,3552.4,2.81495402]
[1762799896012,0.75724763,3552.8,3552.3,0.002]
[1762799896173,0.487,3552.7,3552.3,2.8170659]
[1762799896623,0.94264763,3552.9,3552.3,2.8170659]
[1762799897113,0.94264763,3552.9,3552.4,2.81498348]
[1762799897503,0.487,3552.8,3552.4,2.81498348]
[1762799897823,1.24424763,3552.8,3552.3,2.81704344]
[1762799898329,0.487,3552.7,3552.3,2.81704344]
[1762799899430,0.75724763,3552.8,3552.3,2.81704344]
[1762799899605,1.24424763,3552.8,3552.3,0.002]
[1762799899993,0.75724763,3552.9,3552.5,2.81491907]
[1762799900193,0.75724763,3553.0,3552.8,3.28078137]
[1762799900422,0.75724763,3553.0,3552.6,0.02814839]
[1762799900423,0.75724763,3553.2,3552.6,0.4609]
[1762799900728,0.75724763,3553.3,3553.1,2.81444372]
[1762799900914,0.75724763,3553.3,3553.2,0.1809]
[1762799901122,0.75724763,3553.3,3553.2,3.46136451]
[1762799901294,0.75724763,3553.4,3553.3,2.81428531]
[1762799901495,0.75724763,3553.5,3553.3,2.81428531]
[1762799901724,0.75724763,3553.5,3553.3,3.28038531]
[1762799901929,0.75724763,3553.5,3553.4,0.4661]
[1762799902627,0.75724763,3553.6,3553.4,0.4661]
[1762799903004,0.75724763,3553.5,3553.4,0.4661]
[1762799903335,0.75724763,3553.6,3553.4,0.4661]
[1762799905338,1.72614763,3553.5,3552.9,2.81453667]
[1762799905637,0.3095,3553.3,3552.9,0.68554367]
[1762799905935,0.3095,3553.3,3553.0,2.81445872]